fUST/lending_fUST_20240513
["ID","MTS","AMOUNT","RATE_DAILY","PERIOD"]
[326926332,1715596406905,-1952.62,0.00054794,120]
[326926333,1715596406927,-514.21855635,0.00054794,120]
[326926334,1715596406950,-500.0,0.00054794,120]
[326926335,1715596406973,-501.78665677,0.00054794,120]
[326926336,1715596406999,-500.0,0.00054794,120]
[326926337,1715596407023,-505.47616847,0.00054794,120]
[326926338,1715596407046,-525.57984916,0.00054794,120]
[326926339,1715596407069,-503.60556053,0.00054794,120]
[326926340,1715596407091,-500.0,0.00054794,120]
[326926341,1715596407115,-500.0,0.00054794,120]
[326926342,1715596407143,-1730.04,0.00054794,120]
[326926343,1715596407165,-527.15380572,0.00054794,120]
[326926344,1715596407190,-500.0,0.00054794,120]
[326926345,1715596407214,-198.58233211,0.00054794,20]
[326926346,1715596407239,-501.75087753,0.00054794,120]
[326926347,1715596407262,-504.90589721,0.00054794,120]
[326926348,1715596407286,-501.88599636,0.00054794,120]
[326926349,1715596407309,-500.0,0.00054794,120]
[326926350,1715596407333,-500.0,0.00054794,120]
[326926351,1715596407356,-500.0,0.00054794,120]
[326926352,1715596407380,-500.0,0.00054794,120]
[326926353,1715596407403,-607.96668027,0.00054794,120]
[326926354,1715596407425,-502.02084429,0.00054794,120]
[326926355,1715596407448,-500.0,0.00054794,120]
[326926356,1715596407472,-502.33137001,0.00054794,120]
[326926357,1715596407498,-516.41786306,0.00054794,120]
[326926358,1715596407520,-500.0,0.00054794,120]
[326926359,1715596407543,-510.85931783,0.00054794,120]
[326926360,1715596407566,-3233.33,0.00054794,120]
[326926361,1715596407591,-500.0,0.00054794,120]
[326926362,1715596407614,-511.41,0.00054794,120]
[326926363,1715596407637,-506.74817868,0.00054794,120]
[326926364,1715596407659,-504.95854405,0.00054794,120]
[326926365,1715596407683,-500.0,0.00054794,120]
[326926366,1715596407706,-197.9216739,0.00054794,120]
[326926367,1715596407730,-502.34384573,0.00054794,120]
[326926368,1715596407752,-2505.52,0.00054794,120]
[326926369,1715596407776,-500.0,0.00054794,120]
[326926370,1715596407799,-501.56976737,0.00054794,120]
[326926371,1715596407822,-582.74648081,0.00054794,120]
[326926372,1715596407845,-502.44734073,0.00054794,120]
[326926373,1715596407963,-500.0,0.00054794,120]
[326926374,1715596407988,-648.0,0.00054794,120]
[326926376,1715596408012,-500.0,0.00054794,120]
[326926377,1715596408036,-506.63350677,0.00054794,120]
[326926378,1715596408059,-814.6,0.00054794,120]
[326926379,1715596408084,-500.0,0.00054794,120]
[326926380,1715596408108,-503.83401752,0.00054794,120]
[326926381,1715596408132,-161.15800628,0.00054794,120]
[326926382,1715596408160,-501.63146248,0.00054794,120]
[326926383,1715596408183,-503.94849768,0.00054794,120]
[326926384,1715596408205,-769.48,0.00054794,120]
[326926385,1715596408230,-501.53565464,0.00054794,120]
[326926386,1715596408254,-500.0,0.00054794,120]
[326926387,1715596408276,-501.73667156,0.00054794,120]
[326926388,1715596408299,-193.24660493,0.00054794,120]
[326926389,1715596408322,-5451.35,0.00054794,120]
[326926390,1715596408345,-5489.54,0.00054794,120]
[326926391,1715596408369,-503.17441301,0.00054794,120]
[326926392,1715596408392,-503.94201284,0.00054794,120]
[326926393,1715596408415,-506.86183731,0.00054794,120]
[326926394,1715596408436,-521.33711526,0.00054794,120]
[326926395,1715596408459,-379.794696,0.00054794,120]
[326926396,1715596408482,-502.92614319,0.00054794,120]
[326926397,1715596408505,-496.16971908,0.00054794,120]
[326926398,1715596408529,-500.0,0.00054794,120]
[326926399,1715596408552,-500.0,0.00054794,120]
[326926400,1715596408575,-502.37756994,0.00054794,120]
[326926401,1715596408598,-707.57,0.00054794,120]
[326926402,1715596408621,-505.68341234,0.00054794,120]
[326926403,1715596408645,-533.32217447,0.00054794,120]
[326926404,1715596408668,-659.23,0.00054794,120]
[326926405,1715596408690,-500.0,0.00054794,120]
[326926406,1715596408714,-502.82636517,0.00054794,120]
[326926407,1715596408739,-500.0,0.00054794,120]
[326926408,1715596408762,-500.0,0.00054794,120]
[326926409,1715596408785,-408.96165151,0.00054794,120]
[326926410,1715596408808,-524.31114732,0.00054794,120]
[326926411,1715596408831,-500.0,0.00054794,120]
[326926412,1715596408854,-504.8101699,0.00054794,120]
[326926413,1715596408878,-500.0,0.00054794,120]
[326926414,1715596408902,-508.69478158,0.00054794,120]
[326926415,1715596408927,-155.1522904,0.00054794,120]
[326926416,1715596408950,-505.71320201,0.00054794,120]
[326926417,1715596408974,-504.74338014,0.00054794,120]
[326926418,1715596409002,-501.5357283,0.00054794,120]
[326926419,1715596409026,-1561.7,0.00054794,120]
[326926420,1715596409052,-1561.7,0.00054794,120]
[326926421,1715596409077,-1561.7,0.00054794,120]
[326926422,1715596409103,-1561.7,0.00054794,120]
[326926423,1715596409128,-1561.7,0.00054794,120]
[326926424,1715596409154,-1561.7,0.00054794,120]
[326926425,1715596409177,-1561.7,0.00054794,120]
[326926426,1715596409201,-1561.7,0.00054794,120]
[326926427,1715596409225,-1561.7,0.00054794,120]
[326926428,1715596409251,-500.0,0.00054794,120]
[326926429,1715596409273,-1561.7,0.00054794,120]
[326926430,1715596409298,-1561.7,0.00054794,120]
[326926431,1715596409321,-1561.7,0.00054794,120]
[326926432,1715596409345,-1561.7,0.00054794,120]
[326926433,1715596409368,-1561.7,0.00054794,120]
[326926434,1715596409392,-1561.7,0.00054794,120]
[326926435,1715596409415,-1561.7,0.00054794,120]
[326926436,1715596409437,-1561.7,0.00054794,120]
[326926437,1715596409460,-1561.7,0.00054794,120]
[326926438,1715596409484,-1561.7,0.00054794,120]
[326926439,1715596409507,-500.0,0.00054794,120]
[326926440,1715596409531,-1561.7,0.00054794,120]
[326926441,1715596409555,-1561.7,0.00054794,120]
[326926442,1715596409578,-1561.7,0.00054794,120]
[326926443,1715596409600,-1561.7,0.00054794,120]
[326926444,1715596409623,-1561.85448631,0.00054794,120]
[326926445,1715596409646,-500.0,0.00054794,120]
[326926446,1715596409669,-500.0,0.00054794,120]
[326926447,1715596409692,-505.03452232,0.00054794,120]
[326926448,1715596409715,-500.0,0.00054794,120]
[326926449,1715596409739,-500.0,0.00054794,120]
[326926450,1715596409763,-500.0,0.00054794,120]
[326926451,1715596409785,-500.0,0.00054794,120]
[326926452,1715596409808,-505.48716138,0.00054794,120]
[326926453,1715596409830,-500.92258147,0.00054794,120]
[326926454,1715596409854,-500.0,0.00054794,120]
[326926455,1715596409877,-500.0,0.00054794,120]
[326926456,1715596409901,-518.45651002,0.00054794,120]
[326926457,1715596409923,-500.0,0.00054794,7]
[326926458,1715596409945,-500.0,0.00054794,120]
[326926459,1715596409967,-187.96295018,0.00054794,120]
[326926460,1715596409993,-503.45932611,0.00054794,120]
[326926461,1715596410016,-280.82913321,0.00054794,120]
[326926462,1715596410039,-1611.24,0.00054794,120]
[326926463,1715596410148,-502.63895941,0.00054794,120]
[326926464,1715596410173,-718.89,0.00054794,21]
[326926465,1715596410196,-155.43416305,0.00054794,120]
[326926466,1715596410221,-268.0,0.00055,90]
[326926467,1715596410249,-400.94286257,0.0005589,120]
[326926468,1715596410274,-500.0,0.0005589,120]
[326926469,1715596410296,-500.0,0.0005589,120]
[326926470,1715596410319,-500.0,0.0005589,120]
[326926471,1715596410343,-500.0,0.0005589,120]
[326926472,1715596410366,-500.0,0.0005589,120]
[326926473,1715596410392,-172.51384608,0.0005589,120]
[326926474,1715596410419,-1993.31,0.0005589,120]
[326926475,1715596410442,-625.05,0.0005589,120]
[326926476,1715596410467,-625.08,0.0005589,120]
[326926477,1715596410492,-500.0,0.0005589,120]
[326926478,1715596410514,-500.0,0.0005589,120]
[326926479,1715596410537,-500.0,0.0005589,120]
[326926480,1715596410560,-904.83,0.0005589,120]
[326926481,1715596410583,-500.0,0.0005589,120]
[326926482,1715596410606,-500.0,0.0005589,120]
[326926483,1715596410630,-500.0,0.0005589,120]
[326926484,1715596410654,-600.0,0.0005589,120]
[326926485,1715596410676,-500.0,0.0005589,120]
[326926486,1715596410699,-500.0,0.0005589,120]
[326926487,1715596410722,-500.0,0.0005589,120]
[326926488,1715596410747,-505.44531556,0.0005589,120]
[326926489,1715596410770,-500.0,0.0005589,120]
[326926490,1715596410795,-500.0,0.0005589,120]
[326926491,1715596410818,-500.0,0.0005589,120]
[326926492,1715596410840,-616.61,0.0005589,120]
[326926493,1715596410863,-547.1526529,0.0005589,120]
[326926494,1715596410885,-500.0,0.0005589,120]
[326926495,1715596410908,-850.19,0.0005589,120]
[326926496,1715596410931,-500.0,0.0005589,120]
[326926497,1715596410954,-1005.11,0.0005589,120]
[326926498,1715596410976,-538.16,0.0005589,120]
[326926499,1715596411001,-500.0,0.0005589,120]
[326926500,1715596411024,-500.0,0.0005589,120]
[326926501,1715596411046,-500.0,0.0005589,120]
[326926502,1715596411069,-505.42740612,0.0005589,120]
[326926503,1715596411092,-512.52,0.0005589,120]
[326926504,1715596411116,-500.0,0.0005589,120]
[326926505,1715596411143,-500.0,0.0005589,120]
[326926506,1715596411167,-598.16,0.0005589,120]
[326926507,1715596411192,-500.0,0.0005589,120]
[326926508,1715596411216,-500.0,0.0005589,120]
[326926509,1715596411244,-500.0,0.0005589,120]
[326926510,1715596411268,-500.0,0.0005589,120]
[326926511,1715596411290,-548.32579573,0.0005589,120]
[326926512,1715596411315,-500.0,0.0005589,120]
[326926513,1715596411338,-500.0,0.0005589,120]
[326926514,1715596411360,-500.0,0.0005589,120]
[326926515,1715596411382,-500.0,0.0005589,120]
[326926516,1715596411405,-450.21148713,0.0005589,120]
[326926517,1715596411427,-500.0,0.0005589,120]
[326926518,1715596411450,-500.0,0.0005589,120]
[326926519,1715596411473,-500.0,0.0005589,120]
[326926520,1715596411498,-500.0,0.0005589,120]
[326926521,1715596411520,-647.81,0.0005589,120]
[326926522,1715596411543,-500.0,0.0005589,120]
[326926523,1715596411567,-890.56,0.0005589,120]
[326926524,1715596411589,-168.06510085,0.0005589,120]
[326926525,1715596411614,-500.0,0.0005589,120]
[326926526,1715596411637,-500.0,0.0005589,120]
[326926527,1715596411661,-500.0,0.0005589,120]
[326926528,1715596411684,-500.00627923,0.0005589,120]
[326926529,1715596411707,-422.94821738,0.0005589,120]
[326926530,1715596411731,-1952.62,0.0005589,120]
[326926531,1715596411754,-500.0,0.0005589,120]
[326926532,1715596411777,-500.0,0.0005589,120]
[326926534,1715596411801,-500.0,0.0005589,120]
[326926535,1715596411824,-309.02363625,0.0005589,120]
[326926536,1715596411848,-1730.04,0.0005589,120]
[326926537,1715596411872,-234.58978485,0.0005589,120]
[326926538,1715596411896,-500.0,0.0005589,120]
[326926539,1715596411920,-500.0,0.0005589,120]
[326926540,1715596411946,-500.0,0.0005589,120]
[326926541,1715596411969,-500.0,0.0005589,120]
[326926542,1715596411996,-347.12575969,0.0005589,120]
[326926543,1715596412019,-562.27958098,0.0005589,120]
[326926544,1715596412043,-3233.33,0.0005589,120]
[326926545,1715596412068,-500.0,0.0005589,120]
[326926546,1715596412091,-511.41,0.0005589,120]
[326926547,1715596412115,-500.0,0.0005589,120]
[326926548,1715596412138,-2505.52,0.0005589,120]
[326926549,1715596412163,-500.0,0.0005589,120]
[326926550,1715596412189,-592.91610402,0.0005589,120]
[326926551,1715596412300,-648.0,0.0005589,120]
[326926552,1715596412324,-500.0,0.0005589,120]
[326926553,1715596412347,-814.6,0.0005589,120]
[326926554,1715596412372,-535.29177895,0.0005589,120]
[326926555,1715596412396,-769.48,0.0005589,120]
[326926556,1715596412420,-500.0,0.0005589,120]
[326926557,1715596412444,-5451.35,0.0005589,120]
[326926558,1715596412470,-5489.54,0.0005589,120]
[326926559,1715596412500,-500.0,0.0005589,120]
[326926560,1715596412524,-500.0,0.0005589,120]
[326926561,1715596412548,-707.57,0.0005589,120]
[326926562,1715596412572,-659.23,0.0005589,120]
[326926563,1715596412594,-500.0,0.0005589,120]
[326926564,1715596412617,-503.64663083,0.0005589,120]
[326926565,1715596412641,-540.96760127,0.0005589,120]
[326926566,1715596412663,-500.0,0.0005589,120]
[326926567,1715596412687,-500.0,0.0005589,120]
[326926568,1715596412712,-521.03654429,0.0005589,120]
[326926569,1715596412739,-500.0,0.0005589,120]
[326926570,1715596412761,-500.0,0.0005589,120]
[326926571,1715596412784,-171.45579294,0.0005589,120]
[326926572,1715596412807,-500.0,0.0005589,120]
[326926573,1715596412831,-500.0,0.0005589,120]
[326926574,1715596412854,-500.0,0.0005589,120]
[326926575,1715596412878,-521.06166419,0.0005589,120]
[326926576,1715596412902,-500.0,0.0005589,120]
[326926577,1715596412924,-500.0,0.0005589,120]
[326926578,1715596412946,-500.0,0.0005589,7]
[326926579,1715596412969,-500.0,0.0005589,120]
[326926580,1715596412994,-718.89,0.0005589,21]
[326926581,1715596413017,-500.0,0.00056986,120]
[326926582,1715596413040,-499.35863043,0.00056986,120]
[326926583,1715596413063,-500.0,0.00056986,120]
[326926584,1715596413086,-378.14769661,0.00056986,120]
[326926585,1715596413108,-500.0,0.00056986,120]
[326926586,1715596413133,-1993.31,0.00056986,120]
[326926587,1715596413157,-625.05,0.00056986,120]
[326926588,1715596413181,-625.08,0.00056986,120]
[326926589,1715596413204,-500.0,0.00056986,120]
[326926590,1715596413229,-500.0,0.00056986,120]
[326926591,1715596413256,-500.0,0.00056986,120]
[326926592,1715596413280,-904.83,0.00056986,120]
[326926593,1715596413303,-500.0,0.00056986,120]
[326926594,1715596413325,-500.0,0.00056986,120]
[326926595,1715596413348,-500.0,0.00056986,120]
[326926596,1715596413370,-302.59528872,0.00056986,120]
[326926597,1715596413394,-500.0,0.00056986,120]
[326926598,1715596413419,-500.0,0.00056986,120]
[326926599,1715596413441,-500.0,0.00056986,120]
[326926601,1715596413463,-500.0,0.00056986,120]
[326926602,1715596413490,-500.0,0.00056986,120]
[326926603,1715596413512,-519.5261134,0.00056986,120]
[326926604,1715596413533,-616.61,0.00056986,120]
[326926605,1715596413555,-500.0,0.00056986,120]
[326926606,1715596413578,-850.19,0.00056986,120]
[326926607,1715596413601,-500.0,0.00056986,120]
[326926608,1715596413624,-1005.11,0.00056986,120]
[326926609,1715596413647,-538.16,0.00056986,120]
[326926610,1715596413681,-506.57165246,0.00056986,120]
[326926611,1715596413714,-500.0,0.00056986,120]
[326926612,1715596413747,-500.0,0.00056986,120]
[326926613,1715596413780,-512.52,0.00056986,120]
[326926614,1715596413814,-505.85929806,0.00056986,120]
[326926615,1715596413845,-500.0,0.00056986,120]
[326926616,1715596413877,-598.16,0.00056986,120]
[326926617,1715596413911,-580.96613302,0.00056986,120]
[326926618,1715596413942,-500.0,0.00056986,120]
[326926619,1715596413975,-500.0,0.00056986,120]
[326926620,1715596414012,-500.0,0.00056986,120]
[326926621,1715596414050,-500.0,0.00056986,120]
[326926622,1715596414084,-500.0,0.00056986,120]
[326926623,1715596414116,-500.0,0.00056986,120]
[326926624,1715596414152,-517.3383959,0.00056986,120]
[326926625,1715596414184,-500.0,0.00056986,120]
[326926626,1715596414214,-500.0,0.00056986,120]
[326926627,1715596414244,-500.0,0.00056986,120]
[326926628,1715596414274,-500.0,0.00056986,120]
[326926629,1715596414304,-647.81,0.00056986,120]
[326926630,1715596414335,-500.0,0.00056986,120]
[326926631,1715596414366,-890.56,0.00056986,120]
[326926632,1715596414396,-500.0,0.00056986,120]
[326926633,1715596414426,-500.0,0.00056986,120]
[326926634,1715596414456,-500.0,0.00056986,120]
[326926635,1715596414573,-1952.62,0.00056986,120]
[326926636,1715596414606,-376.61383395,0.00056986,120]
[326926637,1715596414638,-500.0,0.00056986,120]
[326926638,1715596414669,-500.0,0.00056986,120]
[326926639,1715596414701,-1730.04,0.00056986,120]
[326926640,1715596414738,-500.0,0.00056986,120]
[326926641,1715596414770,-500.0,0.00056986,120]
[326926642,1715596414808,-568.57381106,0.00056986,120]
[326926643,1715596414842,-500.0,0.00056986,120]
[326926644,1715596414874,-3233.33,0.00056986,120]
[326926645,1715596414905,-500.0,0.00056986,120]
[326926646,1715596414937,-511.41,0.00056986,120]
[326926647,1715596414970,-500.0,0.00056986,120]
[326926648,1715596415008,-2505.52,0.00056986,120]
[326926649,1715596415040,-500.0,0.00056986,120]
[326926650,1715596415073,-648.0,0.00056986,120]
[326926652,1715596415106,-500.0,0.00056986,120]
[326926653,1715596415140,-814.6,0.00056986,120]
[326926654,1715596415172,-769.48,0.00056986,120]
[326926655,1715596415204,-500.0,0.00056986,120]
[326926656,1715596415241,-5451.35,0.00056986,120]
[326926657,1715596415273,-5489.54,0.00056986,120]
[326926658,1715596415304,-500.0,0.00056986,120]
[326926659,1715596415335,-500.0,0.00056986,120]
[326926660,1715596415366,-707.57,0.00056986,120]
[326926661,1715596415397,-659.23,0.00056986,120]
[326926662,1715596415428,-500.0,0.00056986,120]
[326926663,1715596415460,-606.42599491,0.00056986,120]
[326926664,1715596415492,-500.0,0.00056986,120]
[326926665,1715596415523,-500.0,0.00056986,120]
[326926666,1715596415555,-500.0,0.00056986,120]
[326926667,1715596415585,-500.0,0.00056986,120]
[326926668,1715596415616,-553.72864921,0.00056986,120]
[326926670,1715596415648,-500.0,0.00056986,120]
[326926671,1715596415679,-500.0,0.00056986,120]
[326926672,1715596415711,-302.42210262,0.00056986,120]
[326926673,1715596415743,-511.5615963,0.00056986,7]
[326926674,1715596415776,-500.0,0.00056986,120]
[326926675,1715596415808,-718.89,0.00056986,21]
[326926676,1715596415930,501.21347406,0.00054794,120]
[326926677,1715596416124,906.74325,0.000467,30]
[326926678,1715596416197,40644.80793062,0.00035,30]
[326926679,1715596416849,791.73,0.00054794,120]
[326926680,1715596417129,791.73,0.0005589,120]
[326926682,1715596417382,791.73,0.00056986,120]
[326926683,1715596417623,500.0,0.00054794,120]
[326926684,1715596417882,500.0,0.0005589,120]
[326926685,1715596418179,500.0,0.00056986,120]
[326926687,1715596422366,3026.83259381,0.00038,30]
[326926688,1715596426102,159.10601958,0.000425,30]
[326926689,1715596428311,500.0,0.00054794,120]
[326926690,1715596445283,-300.285975,0.00019341,2]
[326926691,1715596445308,-1061.19585767,0.000199,2]
[326926692,1715596445334,-412.8985133,0.00019997,2]
[326926693,1715596445360,-3058.05109011,0.00019998,2]
[326926694,1715596445385,-1687.99667892,0.00019998,2]
[326926695,1715596445411,-23679.94880057,0.00019998,2]
[326926696,1715596445436,-385.33268327,0.00019999,2]
[326926697,1715596445463,-292.05270346,0.00019999,2]
[326926698,1715596445489,-500.0,0.00019999,2]
[326926699,1715596445515,-500.0,0.00019999,2]
[326926700,1715596445540,-500.0,0.00019999,2]
[326926701,1715596445567,-500.0,0.00019999,2]
[326926702,1715596445692,-500.0,0.00019999,2]
[326926703,1715596445720,-500.0,0.00019999,2]
[326926704,1715596445749,-395.47640152,0.00019999,2]
[326926705,1715596445775,-395.47640152,0.00019999,2]
[326926706,1715596445801,-500.0,0.00019999,2]
[326926707,1715596445827,-275.62926,0.00019999,2]
[326926708,1715596445851,-500.0,0.00019999,2]
[326926709,1715596445876,-395.47640152,0.00019999,2]
[326926710,1715596445901,-462.99132923,0.00019999,2]
[326926711,1715596445926,-500.0,0.00019999,2]
[326926712,1715596445953,-500.0,0.00019999,2]
[326926713,1715596445979,-500.0,0.00019999,2]
[326926714,1715596446006,-500.0,0.00019999,2]
[326926715,1715596446032,-500.0,0.00019999,2]
[326926716,1715596446058,-500.0,0.00019999,2]
[326926717,1715596446099,-500.0,0.00019999,2]
[326926718,1715596446125,-500.0,0.00019999,2]
[326926719,1715596446155,-500.0,0.00019999,2]
[326926720,1715596446182,-500.0,0.00019999,2]
[326926721,1715596446207,-500.0,0.00019999,2]
[326926722,1715596446235,-500.0,0.00019999,2]
[326926723,1715596446262,-500.0,0.00019999,2]
[326926724,1715596446289,-500.0,0.00019999,2]
[326926725,1715596446315,-500.0,0.00019999,2]
[326926726,1715596446346,-500.0,0.00019999,2]
[326926727,1715596446373,-500.0,0.00019999,2]
[326926728,1715596446399,-500.0,0.00019999,2]
[326926729,1715596446426,-500.0,0.00019999,2]
[326926730,1715596446451,-500.0,0.00019999,2]
[326926731,1715596446478,-500.0,0.00019999,2]
[326926732,1715596446505,-651.86263471,0.00019999,2]
[326926733,1715596446533,-500.0,0.00019999,2]
[326926734,1715596446559,-500.0,0.00019999,2]
[326926735,1715596446588,-500.0,0.00019999,2]
[326926736,1715596446615,-500.0,0.00019999,2]
[326926737,1715596446642,-500.0,0.00019999,2]
[326926738,1715596446669,-500.0,0.00019999,2]
[326926739,1715596446697,-500.0,0.00019999,2]
[326926740,1715596446724,-500.0,0.00019999,2]
[326926741,1715596446750,-500.0,0.00019999,2]
[326926742,1715596446777,-500.0,0.00019999,2]
[326926743,1715596446803,-500.0,0.00019999,2]
[326926744,1715596446831,-500.0,0.00019999,2]
[326926745,1715596446858,-500.0,0.00019999,2]
[326926746,1715596446884,-395.47640152,0.00019999,2]
[326926747,1715596446907,-56807.50863189,0.0002,2]
[326926748,1715596446931,-168.00249386,0.0002,2]
[326926749,1715596446954,-200.0,0.0002,2]
[326926750,1715596446978,-44560.34912337,0.0002,2]
[326926751,1715596447004,-833.60436794,0.00020614,2]
[326926752,1715596447028,-894.24108922,0.00020908,2]
[326926753,1715596447052,-475.84079107,0.00020908,2]
[326926754,1715596447078,-156.25054915,0.00020908,2]
[326926755,1715596447101,-688.52224507,0.00020909,2]
[326926756,1715596447126,-708.8121984,0.0002091,2]
[326926757,1715596447154,-586.54693185,0.0002091,2]
[326926758,1715596447179,-17417.98371451,0.0002091,2]
[326926759,1715596447202,-605.94344679,0.0002091,2]
[326926760,1715596447228,-349.659806,0.0002091,2]
[326926761,1715596447253,-349.659806,0.0002091,2]
[326926762,1715596447277,-151.0,0.0002091,2]
[326926763,1715596447301,-193.142864,0.0002091,2]
[326926764,1715596447326,-193.142864,0.0002091,2]
[326926765,1715596447350,-151.0,0.0002091,2]
[326926766,1715596447373,-151.0,0.0002091,2]
[326926767,1715596447396,-151.0,0.0002091,2]
[326926768,1715596447420,-151.0,0.0002091,2]
[326926769,1715596447443,-189.69444695,0.00020911,2]
[326926770,1715596447467,-670.30750172,0.00020911,2]
[326926771,1715596447492,-331.23756107,0.00020911,2]
[326926772,1715596447515,-1500.33205431,0.00020911,2]
[326926773,1715596447539,-856.00621859,0.00020911,2]
[326926774,1715596447564,-251.99624655,0.00020913,2]
[326926775,1715596447589,-256.9362101,0.00021918,2]
[326926776,1715596447613,-6072.6170963,0.00021918,2]
[326926777,1715596447720,-166.666666,0.00021918,2]
[326926778,1715596447748,-162.8328678,0.00021918,2]
[326926779,1715596447774,-151.0,0.00021918,2]
[326926780,1715596447798,-881.27506105,0.00022,2]
[326926781,1715596447822,-168.0,0.00022,2]
[326926782,1715596447849,-166.666666,0.00022773,2]
[326926783,1715596447875,-156.8,0.0002278,2]
[326926784,1715596447899,-154.82968734,0.00023,2]
[326926785,1715596447922,-168.0,0.00023014,2]
[326926786,1715596447947,-162.767923,0.00023562,2]
[326926787,1715596447971,-161.326027,0.00023562,2]
[326926788,1715596447996,-160.554815,0.00023562,2]
[326926789,1715596448023,-162.766299,0.00023562,2]
[326926790,1715596448048,-166.666666,0.00023627,2]
[326926791,1715596448073,-1061.19585764,0.0002365,2]
[326926792,1715596448099,-193.142864,0.00024482,2]
[326926793,1715596448122,-193.142864,0.00024482,2]
[326926794,1715596448148,-151.0,0.00024482,2]
[326926795,1715596448174,-151.0,0.00024482,2]
[326926796,1715596448197,-151.0,0.00024482,2]
[326926797,1715596448220,-297.390302,0.00024482,2]
[326926798,1715596448247,-166.666666,0.00024482,2]
[326926799,1715596448270,-154.75239617,0.00025,2]
[326926800,1715596448292,-524.02750193,0.00025,2]
[326926801,1715596448316,-156.8,0.00025072,2]
[326926802,1715596448343,-349.659806,0.00025072,2]
[326926803,1715596448367,-349.659806,0.00025072,2]
[326926804,1715596448390,-151.0,0.00025072,2]
[326926805,1715596448415,-186.94483115,0.00027,2]
[326926806,1715596448440,-620.01180285,0.00027194,2]
[326926807,1715596448464,-156.8,0.00027365,3]
[326926808,1715596448487,-223.04300104,0.0002739,2]
[326926809,1715596448513,-1061.19585764,0.000274,2]
[326926810,1715596448537,-985.39342427,0.0002877,2]
[326926811,1715596448561,-168.0,0.00028997,2]
[326926812,1715596448585,-300.285975,0.00029011,2]
[326926813,1715596448609,-156.8,0.00029657,3]
[326926814,1715596448632,-154.73694719,0.0003,2]
[326926815,1715596448655,-155.09907182,0.0003,4]
[326926816,1715596448680,-1061.19585764,0.0003115,2]
[326926817,1715596448704,-589.0,0.000314,2]
[326926818,1715596448730,-156.8,0.00031949,5]
[326926819,1715596448755,-191.38961347,0.00032,4]
[326926820,1715596448780,-162.767923,0.00033873,2]
[326926821,1715596448804,-495.0,0.00033982,2]
[326926822,1715596448831,-150.0,0.00033982,2]
[326926823,1715596448856,-10691.78994856,0.00034,5]
[326926824,1715596448881,-291.37136184,0.00034,2]
[326926825,1715596448906,-467.4319829,0.00034,4]
[326926826,1715596448932,-349.659806,0.00034,2]
[326926827,1715596448959,-349.659806,0.00034,2]
[326926828,1715596448984,-151.0,0.00034,2]
[326926829,1715596449009,-193.142864,0.00034,2]
[326926830,1715596449034,-193.142864,0.00034,2]
[326926831,1715596449059,-151.585567,0.00034,2]
[326926832,1715596449088,-151.0,0.00034,2]
[326926833,1715596449116,-156.8,0.00034242,5]
[326926834,1715596449141,-4525.19729246,0.00034788,2]
[326926835,1715596449172,-193.142864,0.00034788,2]
[326926836,1715596449199,-193.142864,0.00034788,2]
[326926837,1715596449226,-151.0,0.00034788,2]
[326926838,1715596449251,-2000.0,0.000348,2]